bitfinex/quotes_ETHUSD_20240916
["timestamp","ask_amount","ask_price","bid_price","bid_amount"]
[1726467500377,7.80209049,2304.1,2303.6,6.71382]
[1726467500579,6.60085,2304.1,2303.6,6.71382]
[1726467500736,6.29776098,2304.2,2303.7,4.34083]
[1726467501952,6.78203,2304.3,2303.8,4.34056]
[1726467502244,4.3399,2304.2,2303.7,8.68147]
[1726467502468,4.3399,2304.2,2303.7,4.34073]
[1726467503187,6.29776098,2304.2,2303.7,4.34073]
[1726467503340,7.91657444,2304.2,2303.7,4.34073]
[1726467504738,12.25661444,2304.2,2303.7,4.34073]
[1726467504944,4.34018,2304.1,2303.6,6.71374]
[1726467505140,4.34029,2304.0,2303.6,2.3728]
[1726467505368,1.46989544,2304.1,2303.6,6.71372]
[1726467505571,5.80999544,2304.1,2303.6,6.71372]
[1726467505774,4.33992,2304.2,2303.7,4.34068]
[1726467506076,4.33992,2304.2,2303.8,4.34064]
[1726467506277,6.78192,2304.3,2303.8,4.34064]
[1726467506485,12.2957681,2304.3,2303.8,4.34064]
[1726467506778,12.2957681,2304.3,2303.7,4.34068]
[1726467506779,4.33991,2304.2,2303.7,4.34068]
[1726467507147,4.33991,2304.2,2303.6,2.3728]
[1726467507148,4.34018,2304.1,2303.6,6.71379]
[1726467507348,6.29819098,2304.0,2303.6,2.3728]
[1726467507582,2.3553,2303.9,2303.5,8.68218]
[1726467508160,2.3553,2303.9,2303.6,4.34102]
[1726467508378,6.29819098,2304.0,2303.6,4.34102]
[1726467508559,4.34026,2304.1,2303.7,2.3591]
[1726467508772,7.62130581,2304.1,2303.7,2.3591]
[1726467509776,4.34037,2304.0,2303.7,2.3591]
[1726467509973,7.62129581,2304.1,2303.7,2.3591]
[1726467510356,7.62129581,2304.1,2303.7,6.69992]
[1726467510589,5.32559581,2304.1,2303.7,6.69992]
[1726467511152,4.34015,2304.1,2303.7,6.69983]
[1726467511479,10.63784098,2304.2,2303.7,6.69983]
[1726467511995,4.33994,2304.2,2303.7,6.69983]
[1726467512562,8.67994,2304.2,2303.7,6.69983]
[1726467512905,4.33994,2304.2,2303.7,6.69983]
[1726467513061,8.67994,2304.2,2303.7,6.69983]
[1726467513369,4.34017,2304.1,2303.7,6.69983]
[1726467513575,12.36489889,2304.2,2303.7,6.69983]
[1726467514092,8.02481889,2304.2,2303.7,6.69983]
[1726467514305,12.36481889,2304.2,2303.7,6.69983]
[1726467514608,8.02481889,2304.2,2303.7,6.69983]
[1726467514796,12.36485889,2304.2,2303.7,6.69983]
[1726467514992,8.02481889,2304.2,2303.7,6.69983]
[1726467515576,12.36481889,2304.2,2303.7,6.69983]
[1726467516491,0.10851442,2304.1,2303.7,2.3591]
[1726467516659,2.2523,2304.0,2303.6,4.34096]
[1726467518202,4.3401,2304.1,2303.7,4.34084]
[1726467518401,4.3401,2304.1,2303.5,6.67045]
[1726467518402,4.3401,2304.1,2303.6,4.34102]
[1726467522841,4.3401,2304.1,2303.5,6.67045]
[1726467523146,4.3401,2304.1,2303.6,4.34092]
[1726467523753,1.95786098,2304.2,2303.6,4.34092]
[1726467523754,1.95786098,2304.2,2303.7,4.34081]
[1726467524515,4.34009,2304.1,2303.6,8.68185]
[1726467524712,5.2134531,2304.1,2303.6,8.68185]
[1726467526021,5.2134531,2304.1,2303.6,4.34092]
[1726467526218,1.95786098,2304.0,2303.5,6.67052]
[1726467526437,2.4711,2303.9,2303.6,4.34101]
[1726467526636,2.4711,2303.9,2303.3,12.64517636]
[1726467526637,4.34093,2303.7,2303.3,9.8593]
[1726467526836,1.95786098,2303.6,2303.3,6.8008]
[1726467527933,1.95786098,2303.4,2303.0,2.3639]
[1726467528568,1.95786098,2303.4,2302.8,6.73544]
[1726467528569,1.95786098,2303.1,2302.8,6.73544]
[1726467528860,0.10855277,2303.3,2302.8,6.73544]
[1726467528861,2.06641375,2303.3,2302.8,6.73544]
[1726467529058,0.10855577,2303.2,2302.8,6.73544]
[1726467529243,0.10855577,2303.2,2302.8,2.393]
[1726467529454,1.95786098,2302.9,2302.8,2.393]
[1726467529758,4.38736098,2303.1,2302.6,7.3286]
[1726467530067,4.38736098,2303.1,2302.6,11.67148]
[1726467530068,2.5380659,2303.1,2302.6,11.67148]
[1726467530220,4.34149,2303.4,2302.9,2.3183]
[1726467530424,3.0,2303.5,2302.9,6.66054]
[1726467530666,3.10854839,2303.5,2303.0,4.34212]
[1726467530961,3.0,2303.5,2303.0,4.34212]
[1726467531256,2.4252,2303.6,2303.1,0.67464448]
[1726467531416,2.4252,2303.6,2303.1,4.34185]
[1726467531417,11.0129386,2303.6,2303.1,4.34185]
[1726467531620,4.44975997,2303.5,2302.9,6.66054]
[1726467531823,4.2467086,2303.0,2302.7,2.3314]
[1726467532127,10.9363186,2303.2,2302.7,6.674]
[1726467532525,10.9363186,2303.2,2302.7,2.3314]
[1726467533041,10.9363186,2303.2,2302.7,6.67411]
[1726467535138,15.2782586,2303.2,2302.7,2.3314]
[1726467535318,12.46409946,2303.2,2302.7,2.3314]
[1726467535522,4.2467086,2303.0,2302.6,5.0]
[1726467535782,8.5888686,2303.0,2302.6,7.3068]
[1726467536455,4.34216,2303.0,2302.6,7.3068]
[1726467536967,4.45094857,2302.9,2302.6,5.0]
[1726467537137,5.02066231,2302.9,2302.6,5.0]
[1726467537462,4.91209374,2302.9,2302.6,5.0]
[1726467537628,7.25979374,2302.9,2302.6,5.0]
[1726467538139,7.36836675,2302.9,2302.6,5.0]
[1726467539077,7.25979374,2302.9,2302.6,5.0]
[1726467539380,5.92740623,2302.8,2302.6,5.0]
[1726467539593,6.03597924,2302.8,2302.6,5.0]
[1726467540541,0.56971374,2302.9,2302.6,5.0]
[1726467540746,8.69744162,2303.0,2302.6,5.0]
[1726467541051,4.34249,2302.9,2302.6,5.0]
[1726467541887,4.34257,2302.8,2302.6,5.0]
[1726467542055,2.59787301,2302.7,2302.6,5.0]
[1726467542443,11.28331301,2302.7,2302.6,5.0]
[1726467542988,18.9714486,2302.7,2302.6,5.0]
[1726467543681,20.8248686,2302.7,2302.6,5.0]
[1726467543985,25.23845546,2302.7,2302.6,5.0]
[1726467545667,29.58117546,2302.7,2302.6,5.0]
[1726467546964,20.99174686,2302.7,2302.6,5.0]
[1726467547261,13.09902686,2302.7,2302.6,5.0]
[1726467547463,4.34272,2302.7,2302.6,5.0]
[1726467547900,4.34255,2302.8,2302.6,5.0]
[1726467548115,4.34226,2303.0,2302.6,5.0]
[1726467548406,6.82792,2302.7,2302.6,5.0]
[1726467548709,11.27922179,2302.7,2302.6,5.0]
[1726467549105,4.34272,2302.7,2302.6,5.0]
[1726467551371,7.34201,2303.1,2302.7,2.2514]
[1726467551372,3.0,2303.1,2302.7,2.2514]
[1726467551579,4.34153,2303.4,2302.8,5.06764]
[1726467551886,6.73112,2303.6,2302.9,2.4382]
[1726467552220,4.2467086,2303.3,2302.9,2.944964]
[1726467552418,4.2467086,2303.3,2302.9,2.4382]
[1726467552709,4.34154,2303.4,2302.9,2.4382]
[1726467552913,8.6831,2303.4,2302.9,2.4382]
[1726467553225,3.0,2303.3,2302.9,2.4382]
[1726467554527,4.2467086,2303.1,2302.9,2.4382]
[1726467554692,7.2467086,2303.3,2302.7,2.4593]
[1726467554880,7.2467086,2303.3,2302.7,3.39739428]
[1726467555405,11.5883186,2303.3,2302.7,3.39739428]
[1726467556917,4.2467086,2302.9,2302.7,2.4593]
[1726467557084,0.1085696,2302.8,2302.6,5.0]
[1726467557282,4.2467086,2302.7,2302.6,5.0]
[1726467557528,9.45919242,2302.7,2302.6,5.0]
[1726467557814,17.35191242,2302.7,2302.6,5.0]
[1726467558801,19.76721242,2302.7,2302.6,5.0]
[1726467565076,17.35191242,2302.7,2302.6,5.0]
[1726467565277,16.4821486,2302.7,2302.6,5.0]
[1726467569123,23.1135686,2302.7,2302.6,5.0]
[1726467569481,27.4562886,2302.7,2302.6,5.0]
[1726467570421,23.35144,2302.6,2302.5,0.0381628]
[1726467570621,26.52173972,2302.6,2302.5,0.0381628]
[1726467582928,30.86464972,2302.6,2302.5,0.0381628]
[1726467583450,30.86464972,2302.6,2301.8,0.0381628]
[1726467583451,12.23846,2301.9,2301.8,0.0381628]
[1726467583637,18.1434166,2301.9,2301.8,0.0381628]
[1726467585734,22.4876466,2301.9,2301.8,0.0381628]
[1726467585941,29.1940766,2301.9,2301.8,0.0381628]
[1726467586660,29.1940766,2301.9,2301.1,2.2954628]
[1726467586661,8.6911,2301.2,2301.1,2.2954628]
[1726467586971,17.7914366,2301.2,2301.1,2.2954628]
[1726467587691,12.2411,2301.2,2301.1,2.2954628]
[1726467590962,16.4878086,2301.2,2301.1,0.0381628]
[1726467592081,12.2411,2301.2,2301.1,0.0381628]
[1726467600507,7.89555,2301.2,2301.1,0.0381628]
[1726467600717,7.89555,2301.2,2301.1,2.3812628]
[1726467600920,12.2411,2301.2,2301.1,2.3812628]
[1726467602274,13.88988086,2301.2,2301.1,0.0381628]
[1726467604219,24.76923946,2301.2,2301.1,0.0381628]
[1726467606330,29.11018946,2301.2,2301.1,0.0381628]
[1726467606477,29.11018946,2301.2,2300.4,0.0381628]
[1726467606478,16.4904686,2300.5,2300.4,0.0381628]
[1726467606677,20.8373486,2300.5,2300.4,0.0381628]
[1726467609827,16.4904686,2300.5,2300.4,0.0381628]
[1726467613731,9.1435886,2300.5,2300.4,0.0381628]
[1726467613962,4.34683,2300.6,2300.4,0.0381628]
[1726467614264,4.34644,2300.8,2300.5,2.454]
[1726467614570,4.34669,2300.6,2300.5,2.454]
[1726467615137,4.34646,2300.8,2300.5,2.454]
[1726467616150,4.45513451,2300.8,2300.5,2.454]
[1726467617042,7.45521449,2300.7,2300.5,2.454]
[1726467618995,7.34654,2300.7,2300.5,2.454]
[1726467621591,3.0,2300.7,2300.5,2.454]
[1726467621995,7.3465,2300.7,2300.5,2.454]
[1726467623859,3.55,2300.8,2300.5,2.454]
[1726467624189,3.0,2300.7,2300.5,2.454]
[1726467624693,7.3465,2300.7,2300.5,2.454]
[1726467628489,8.00499424,2300.8,2300.5,2.454]
[1726467628893,4.34651,2300.7,2300.5,2.454]
[1726467629082,4.45518417,2300.7,2300.5,2.454]
[1726467629283,4.34651,2300.7,2300.5,2.454]
[1726467629727,4.45518414,2300.7,2300.5,2.454]
[1726467629889,4.34651,2300.7,2300.5,2.454]
[1726467630090,4.45518414,2300.7,2300.5,2.454]
[1726467631002,4.45518411,2300.7,2300.5,2.454]
[1726467631296,4.45518411,2300.7,2300.4,0.0381628]
[1726467631297,4.34669,2300.6,2300.4,0.0381628]
[1726467631497,16.59915644,2300.5,2300.4,0.0381628]
[1726467631836,18.99025644,2300.5,2300.4,0.0381628]
[1726467631990,21.07989121,2300.5,2300.4,0.0381628]
[1726467632898,25.42677121,2300.5,2300.4,0.0381628]
[1726467634640,21.07989121,2300.5,2300.4,0.0381628]
[1726467636543,25.42677121,2300.5,2300.4,0.0381628]
[1726467637520,21.07989121,2300.5,2300.4,0.0381628]
[1726467637921,18.68879121,2300.5,2300.4,0.0381628]
[1726467642470,23.03567121,2300.5,2300.4,0.0381628]
[1726467642620,25.53367121,2300.5,2300.4,0.0381628]
[1726467644371,21.18679121,2300.5,2300.4,0.0381628]
[1726467644572,25.53367121,2300.5,2300.4,0.0381628]
[1726467645571,21.18679121,2300.5,2300.4,0.0381628]
[1726467646073,25.53367121,2300.5,2300.4,0.0381628]
[1726467646280,21.18679121,2300.5,2300.4,0.0381628]
[1726467646431,18.68879121,2300.5,2300.4,0.0381628]
[1726467651483,26.65464575,2300.5,2300.4,0.0381628]
[1726467651687,25.45327121,2300.5,2300.4,0.0381628]
[1726467652618,18.68879121,2300.5,2300.4,0.0381628]
[1726467653276,23.03567121,2300.5,2300.4,0.0381628]
[1726467654278,25.34707121,2300.5,2300.4,0.0381628]
[1726467655880,29.69395121,2300.5,2300.4,0.0381628]
[1726467656817,25.34707121,2300.5,2300.4,0.0381628]
[1726467657127,29.69395121,2300.5,2300.4,0.0381628]
[1726467657438,25.56163108,2300.5,2300.4,0.0381628]
[1726467657728,29.90851108,2300.5,2300.4,0.0381628]
[1726467658229,25.56163108,2300.5,2300.4,0.0381628]
[1726467658378,29.90851108,2300.5,2300.4,0.0381628]
[1726467659196,34.15521968,2300.5,2300.4,0.0381628]
[1726467659628,29.90851108,2300.5,2300.4,0.0381628]
[1726467660125,34.25539108,2300.5,2300.4,0.0381628]
[1726467660681,34.15521968,2300.5,2300.4,0.0381628]
[1726467661021,12.2464,2299.8,2299.7,0.0381628]
[1726467668799,4.34812,2299.9,2299.8,2.4776]
[1726467668982,3.0,2299.9,2299.8,2.4776]
[1726467669181,4.34754,2300.2,2299.8,2.72917628]
[1726467669182,3.0,2300.1,2299.8,2.72917628]
[1726467669426,11.81718,2300.4,2299.8,2.72917628]
[1726467669727,8.69437,2300.4,2300.0,2.3232]
[1726467669929,4.34726,2300.3,2300.0,2.3232]
[1726467670176,4.34677,2300.6,2300.0,6.67087]
[1726467670440,4.34677,2300.6,2299.9,0.79792797]
[1726467670441,4.34691,2300.5,2300.2,2.3682]
[1726467670598,8.69364,2300.6,2300.2,2.3682]
[1726467670799,4.34688,2300.5,2300.2,2.3682]
[1726467671031,4.34707,2300.4,2300.2,2.3682]
[1726467671235,6.25679906,2300.3,2300.2,2.3682]
[1726467671948,5.00593944,2300.3,2300.2,2.3682]
[1726467672098,4.34792,2300.0,2299.8,2.4601]
[1726467676658,8.0067175,2299.9,2299.8,2.4601]
[1726467677149,16.25723033,2299.9,2299.8,2.4601]
[1726467677358,7.89801,2299.9,2299.8,2.4601]
[1726467677714,12.3547315,2299.9,2299.8,2.4601]
[1726467677909,13.98045493,2299.9,2299.8,2.4601]
[1726467678726,9.52373343,2299.9,2299.8,2.4601]
[1726467680652,9.52373343,2299.9,2299.7,0.0381628]
[1726467680653,4.3482,2299.8,2299.7,0.0381628]
[1726467680825,7.45691606,2299.8,2299.7,0.0381628]
[1726467681155,9.24523129,2299.8,2299.7,0.0381628]
[1726467682612,9.13651523,2299.8,2299.7,0.0381628]
[1726467684462,3.0,2299.8,2299.7,0.0381628]
[1726467684627,4.89801,2299.9,2299.7,2.4211628]
[1726467684628,3.0,2299.9,2299.7,2.4211628]
[1726467684961,3.0,2300.1,2299.8,2.272]
[1726467685670,4.34718,2300.4,2300.0,2.272]
[1726467685960,8.35856305,2300.3,2300.0,2.272]
[1726467686468,4.34746,2300.2,2300.0,2.272]
[1726467686820,5.61804531,2300.2,2300.0,2.272]
[1726467687052,4.34763,2300.1,2300.0,2.272]
[1726467687960,4.34819,2299.9,2299.8,2.3071]
[1726467688164,5.76126704,2299.9,2299.8,2.3071]
[1726467688324,8.76126704,2299.9,2299.8,2.3071]
[1726467690086,13.10945704,2299.9,2299.8,2.3071]
[1726467691092,13.10945704,2299.9,2299.7,0.0381628]
[1726467691093,11.6964,2299.8,2299.7,0.0381628]
[1726467691308,13.39759799,2299.8,2299.7,0.0381628]
[1726467691857,9.04939799,2299.8,2299.7,0.0381628]
[1726467692085,7.3482,2299.8,2299.7,0.0381628]
[1726467693877,7.45691625,2299.8,2299.7,0.0381628]
[1726467694060,11.80511625,2299.8,2299.7,0.0381628]
[1726467695361,12.35511625,2299.8,2299.7,0.0381628]
[1726467699478,19.03511625,2299.8,2299.7,0.0381628]
[1726467699680,21.45931526,2299.8,2299.7,0.0381628]
[1726467702636,14.77931526,2299.8,2299.7,0.0381628]
[1726467705258,19.12751526,2299.8,2299.7,0.0381628]
[1726467712647,21.46501526,2299.8,2299.7,0.0381628]
[1726467716950,25.81321526,2299.8,2299.7,0.0381628]
[1726467717148,25.81321526,2299.8,2299.7,1e-08]
[1726467720142,21.46501526,2299.8,2299.7,1e-08]
[1726467723091,25.81321526,2299.8,2299.7,1e-08]
[1726467724595,19.12751526,2299.8,2299.7,1e-08]
[1726467725880,23.47571526,2299.8,2299.7,1e-08]
[1726467726541,19.12751526,2299.8,2299.7,1e-08]
[1726467728373,21.56001526,2299.8,2299.7,1e-08]
[1726467732519,25.90821526,2299.8,2299.7,1e-08]
[1726467737906,27.71110715,2299.8,2299.7,1e-08]
[1726467744131,9.24904,2299.1,2299.0,2.5356628]
[1726467744326,18.40145189,2299.1,2299.0,2.5356628]
[1726467745960,14.05193189,2299.1,2299.0,2.5356628]
[1726467756317,7.89952,2299.1,2299.0,2.5356628]
[1726467766355,9.30469919,2299.1,2299.0,2.5356628]
[1726467768106,13.65421919,2299.1,2299.0,2.5356628]
[1726467769253,12.24904,2299.1,2299.0,2.5356628]
[1726467772387,7.89952,2299.1,2299.0,2.5356628]
[1726467773011,3.0,2299.1,2299.0,2.5356628]
[1726467773153,7.34952,2299.1,2299.0,2.5356628]
[1726467775877,4.34916,2299.3,2299.0,2.5356628]
[1726467776071,3.0,2299.2,2299.0,2.5356628]
[1726467776655,7.34935,2299.2,2299.0,2.5356628]
[1726467776881,3.0,2299.2,2299.0,2.5356628]
[1726467778503,6.15189189,2299.4,2299.1,2.3703]
[1726467778659,3.0,2299.3,2299.1,2.3703]
[1726467780304,4.34916,2299.3,2299.1,2.3703]
[1726467780664,1.80289189,2299.2,2299.1,2.3703]
[1726467786501,8.5984,2299.3,2299.1,2.3703]
[1726467787113,4.24916,2299.3,2299.1,2.3703]
[1726467787476,4.34933,2299.2,2299.1,2.3703]
[1726467787991,10.61029123,2299.2,2299.1,2.3703]
[1726467788177,10.61029123,2299.2,2299.0,0.0381628]
[1726467788383,12.35778765,2299.1,2299.0,0.0381628]
[1726467788691,7.89952,2299.1,2299.0,0.0381628]
[1726467789982,7.89952,2299.1,2299.0,2.4999628]
[1726467789983,3.0,2299.1,2299.0,2.4999628]
[1726467790433,4.34935,2299.2,2299.0,2.4999628]
[1726467791965,7.34908,2299.4,2299.0,2.74995908]
[1726467792817,4.34916,2299.3,2299.0,2.74995908]
[1726467795273,3.0,2299.4,2299.0,2.74995908]
[1726467795492,7.34896,2299.4,2299.2,2.3461]
[1726467797177,11.69802,2299.4,2299.2,2.3461]
[1726467797394,7.34896,2299.4,2299.2,2.3461]
[1726467800292,11.69802,2299.4,2299.2,2.3461]
[1726467800495,7.34896,2299.4,2299.2,2.3461]
[1726467800711,11.69805,2299.4,2299.2,2.3461]
[1726467801012,11.69803,2299.4,2299.2,2.3461]
[1726467801221,11.69802,2299.4,2299.2,2.3461]
[1726467801572,7.34896,2299.4,2299.2,2.3461]
[1726467801786,11.69802,2299.4,2299.2,2.3461]
[1726467801987,4.34896,2299.4,2299.2,2.3461]
[1726467802213,4.34896,2299.4,2299.2,2.60952591]
[1726467803396,2.2558,2299.9,2299.2,2.60952591]
[1726467803397,4.34791,2300.0,2299.5,2.2501]
[1726467803608,11.89287862,2300.4,2299.8,4.34819]
[1726467803609,7.47,2300.4,2299.8,4.34819]
[1726467803900,11.81708,2300.4,2299.9,2.2501]
[1726467804097,4.34729,2300.3,2299.9,2.2501]
[1726467804304,11.81708,2300.4,2299.9,2.2501]
[1726467804501,1.80289189,2300.3,2299.9,2.2501]
[1726467804704,6.15054189,2300.1,2299.9,2.2501]
[1726467805307,7.34736,2300.3,2299.9,2.2501]
[1726467805531,9.15025189,2300.3,2299.9,2.2501]
[1726467806946,4.34763,2300.1,2299.9,2.2501]
[1726467807364,0.55,2300.2,2299.9,2.2501]
[1726467807651,3.0,2300.3,2299.9,2.47511]
[1726467807805,3.0,2300.3,2299.9,2.56146753]
[1726467808329,3.0,2300.3,2299.9,2.47511]
[1726467808642,3.0,2300.3,2300.0,0.69095375]
[1726467808847,4.34726,2300.3,2299.9,2.47511]
[1726467809009,4.80289189,2300.4,2299.9,2.47511]
[1726467809225,9.14999189,2300.4,2299.9,2.47511]
[1726467812743,7.3471,2300.4,2299.9,2.47511]
[1726467812940,7.3471,2300.4,2300.0,0.6909507]
[1726467813535,3.0,2300.4,2300.1,2.3632]
[1726467813737,4.34741,2300.3,2300.1,2.498]
[1726467813937,4.34736,2300.3,2300.1,2.498]
[1726467814139,6.15047189,2300.2,2299.7,2.498]
[1726467814441,4.34765,2300.1,2299.7,2.932844]
[1726467815037,6.15080189,2300.0,2299.7,2.498]
[1726467815240,4.34802,2299.9,2299.7,2.498]
[1726467815544,4.34802,2299.9,2299.5,2.276]
[1726467815758,4.34802,2299.9,2299.5,3.678482]
[1726467815970,4.34821,2299.8,2299.5,2.276]
[1726467816537,4.34858,2299.6,2299.3,2.3249]
[1726467816735,6.15147189,2299.6,2299.3,2.3249]
[1726467816977,4.34887,2299.5,2299.1,2.3664]
[1726467817148,4.34858,2299.6,2299.1,2.80517628]
[1726467817362,4.34858,2299.6,2299.3,2.3664]
[1726467817879,4.3489,2299.5,2299.3,2.3664]
[1726467820167,4.34858,2299.6,2299.3,2.3664]
[1726467820370,8.69727,2299.6,2299.3,2.3664]
[1726467821229,4.3488,2299.5,2299.3,2.3664]
[1726467821439,8.69729,2299.6,2299.3,2.3664]
[1726467821731,4.34877,2299.5,2299.3,2.3664]
[1726467825111,4.34896,2299.4,2299.3,2.3664]
[1726467825298,4.34858,2299.6,2299.3,2.3664]
[1726467826950,4.34761,2300.2,2299.6,2.3607]
[1726467827105,4.34764,2300.1,2299.7,2.3802]
[1726467827306,4.34764,2300.1,2299.8,0.08638014]
[1726467827549,4.34746,2300.2,2299.9,2.3802]
[1726467828351,4.34766,2300.1,2299.9,2.3802]
[1726467828511,4.34766,2300.1,2299.9,3.12983812]
[1726467828903,4.34746,2300.2,2299.9,3.12983812]
[1726467829721,8.69499,2300.2,2299.9,3.12983812]
[1726467830043,4.34746,2300.2,2299.9,3.12983812]
[1726467831305,7.34715,2300.4,2299.9,3.12983812]
[1726467831306,7.34715,2300.4,2300.0,4.3478]
[1726467831568,7.34715,2300.4,2300.1,0.75640112]
[1726467832662,7.34715,2300.4,2299.9,3.12983812]
[1726467832663,4.89735,2300.3,2299.9,3.12983812]
[1726467832836,4.89735,2300.3,2299.9,2.3802]
[1726467833775,4.34745,2300.2,2299.9,2.3802]
[1726467837167,8.695,2300.2,2299.9,2.3802]
[1726467837461,4.34745,2300.2,2299.9,2.3802]
[1726467837871,8.695,2300.2,2299.9,2.3802]
[1726467838039,4.34745,2300.2,2299.9,2.3802]
[1726467840072,4.34766,2300.1,2299.9,2.3802]
[1726467841332,4.34763,2300.1,2299.9,2.3802]
[1726467841535,8.69505,2300.2,2299.9,2.3802]
[1726467841730,4.34767,2300.1,2299.9,2.3802]
[1726467842638,4.34782,2300.0,2299.9,2.3802]
[1726467842836,4.34782,2300.0,2299.7,2.2518]
[1726467844371,4.34782,2300.0,2299.7,3.09211719]
[1726467844683,4.34766,2300.1,2299.7,3.09211719]
[1726467844883,3.0,2300.1,2299.7,3.09211719]
[1726467845081,4.34751,2300.2,2299.7,4.43467631]
[1726467845235,4.34751,2300.2,2299.8,2.44466113]
[1726467845440,4.34751,2300.2,2299.9,0.24446611]
[1726467845646,7.34739,2300.3,2299.9,0.24446611]
[1726467845851,7.34739,2300.3,2299.8,6.79284113]
[1726467845852,4.34765,2300.1,2299.8,2.44466113]
[1726467846035,4.34746,2300.2,2299.8,3.55878024]
[1726467846832,4.34746,2300.2,2299.8,3.47241911]
[1726467847585,4.34746,2300.2,2299.8,3.55877516]
[1726467847881,4.34746,2300.2,2299.9,2.2935]
[1726467848043,4.34746,2300.2,2299.9,3.07772052]
[1726467852347,4.34746,2300.2,2299.9,2.2935]
[1726467858884,7.34726,2300.3,2299.9,2.2935]
[1726467859062,4.34692,2300.5,2300.1,2.3808]
[1726467859266,3.0,2300.4,2300.2,0.23808]
[1726467859474,3.0,2300.4,2300.1,2.3808]
[1726467859816,7.34651,2300.7,2300.2,0.08633531]
[1726467859956,7.34662,2300.7,2300.3,2.3808]
[1726467860149,4.34671,2300.6,2300.3,2.46710969]
[1726467860388,4.34671,2300.6,2300.3,2.3808]
[1726467860389,3.0,2300.5,2300.3,2.3808]
[1726467862772,7.34695,2300.5,2300.3,2.3808]
[1726467862998,3.0,2300.5,2300.3,2.3808]
[1726467863957,4.34671,2300.6,2300.3,2.3808]
[1726467868265,10.04309119,2300.6,2300.3,2.3808]
[1726467868800,5.69631119,2300.6,2300.3,2.3808]
[1726467869004,4.34671,2300.6,2300.3,2.3808]
[1726467871214,7.34652,2300.7,2300.3,2.3808]
[1726467871361,7.34652,2300.7,2300.3,2.46710935]
[1726467871806,4.34672,2300.6,2300.3,2.3808]
[1726467872103,5.69630519,2300.6,2300.3,2.3808]
[1726467872304,4.34672,2300.6,2300.3,2.3808]
[1726467875363,7.34652,2300.7,2300.3,2.3808]
[1726467875636,11.69312,2300.7,2300.4,0.08630891]
[1726467875783,13.28432119,2300.7,2300.4,0.08630891]
[1726467876098,13.28438119,2300.7,2300.4,0.08630891]
[1726467876915,8.93772119,2300.7,2300.4,0.08630891]
[1726467880944,8.93772119,2300.7,2300.3,6.72805]
[1726467880945,7.34652,2300.7,2300.3,6.81435747]
[1726467881310,7.34652,2300.7,2300.3,6.72805]
[1726467883220,7.34652,2300.7,2300.3,6.81435031]
[1726467885553,7.34652,2300.7,2300.3,6.72805]
[1726467891946,7.34652,2300.7,2300.3,6.81435025]
[1726467893638,7.34652,2300.7,2300.3,6.72805]
[1726467896950,6.76228,2300.9,2300.3,7.84408402]
[1726467896951,4.34632,2300.8,2300.3,7.84408402]
[1726467897283,4.34632,2300.8,2300.3,7.93038247]
[1726467899993,4.34632,2300.8,2300.3,12.27755247]
[1726467900294,4.34632,2300.8,2300.3,7.93038247]
[1726467900601,4.34632,2300.8,2300.3,7.84408402]
[1726467900892,4.34632,2300.8,2300.3,7.93038233]
[1726467901100,4.34653,2300.7,2300.3,2.3808]
[1726467902050,4.34678,2300.6,2300.3,2.3808]
[1726467902251,4.3471,2300.4,2300.1,2.3931]
[1726467902657,8.56008189,2300.3,2299.9,9.7057]
[1726467903170,4.34748,2300.2,2299.9,9.7057]
[1726467903374,4.34765,2300.1,2299.9,7.4]
[1726467903681,8.63820519,2300.2,2299.7,6.65407]
[1726467903883,7.34745,2300.2,2299.7,7.75434]
[1726467904068,7.34745,2300.2,2299.7,6.65407]
[1726467904455,4.34766,2300.1,2299.7,2.3057]
[1726467906098,6.15055189,2300.1,2299.7,2.3057]
[1726467906401,4.34785,2300.0,2299.7,2.3057]
[1726467906957,4.34802,2299.9,2299.4,7.4]
[1726467907173,4.34802,2299.9,2299.5,2.4969]
[1726467907462,4.34802,2299.9,2299.5,3.79666419]
[1726467907660,6.15091189,2299.9,2299.5,2.4969]
[1726467908097,4.34802,2299.9,2299.5,2.4969]
[1726467909010,6.15091189,2299.9,2299.5,2.4969]
[1726467909297,4.34841,2299.7,2299.2,2.4571]
[1726467910467,4.34841,2299.7,2299.2,2.54352437]
[1726467910871,5.3027,2300.0,2299.4,2.3684]
[1726467911106,11.696,2300.0,2299.6,2.3684]
[1726467911407,7.348,2300.0,2299.6,2.3684]
[1726467911694,11.69595,2300.0,2299.6,2.3684]
[1726467911900,7.34795,2300.0,2299.6,2.3684]
[1726467913259,9.492123,2300.0,2299.6,2.3684]
[1726467913686,9.74644,2299.9,2299.4,2.3423]
[1726467913891,5.3983,2299.9,2299.4,2.3423]
[1726467914585,5.3983,2299.9,2299.4,6.69123]
[1726467916718,5.3983,2299.9,2299.4,7.795249]
[1726467917021,9.74633,2299.9,2299.4,7.795249]
[1726467917218,3.0,2299.9,2299.5,4.34876]
[1726467917422,0.55,2300.0,2299.6,4.34853]
[1726467918124,0.55,2300.0,2299.7,2.4304]
[1726467920587,4.89783,2300.0,2299.7,2.4304]
[1726467920809,3.0,2299.9,2299.7,2.4304]
[1726467921121,7.34803,2299.9,2299.5,6.77105]
[1726467921325,3.0,2299.9,2299.5,11.1198]
[1726467921619,3.0,2299.9,2299.5,11.11964]
[1726467924118,3.0,2299.9,2299.5,6.77096]
[1726467924692,3.0,2299.9,2299.5,11.11964]
[1726467925779,3.0,2299.9,2299.5,6.77096]
[1726467926531,3.0,2299.9,2299.5,11.11963]
[1726467927124,3.0,2299.9,2299.6,4.34853]
[1726467927629,3.0,2299.9,2299.5,11.11963]
[1726467929024,3.0,2299.9,2299.5,6.77096]
[1726467929226,3.0,2299.9,2299.5,11.11963]
[1726467929588,7.34814,2299.9,2299.5,2.4223]
[1726467929795,3.124783,2299.8,2299.4,4.34893]
[1726467929990,2.335,2299.8,2299.4,4.34893]